[Event "LEM Niedersachsen-A-Open 2025"]
[Site "Verden"]
[Date "2025.01.02"]
[Round "1.36"]
[White "Klages, Jonas"]
[Black "Boehnke, Marc"]
[Result "1/2-1/2"]
[ECO "B90"]
[WhiteElo "1776"]
[BlackElo "1927"]
[Annotator "RC"]
[PlyCount "76"]
[EventDate "2024.12.27"]
[EventType "swiss"]
[EventCountry "GER"]
[SourceTitle "playchess.com"]
[Source "ChessBase"]
[SourceQuality "1"]
[TimeControl "40/5400+30:1800+30"]

1. e4 {[%emt 0:00:02]} c5 {[%emt 0:00:12]} 2. Nf3 {[%emt 0:00:05]} d6 {[%emt 0:00:07]} 3. d4 {[%emt 0:00:22]} cxd4 {[%emt 0:00:07]} 4. Nxd4 {[%emt 0:00:05]} Nf6 {[%emt 0:00:04]} 5. Nc3 {[%emt 0:00:16]} a6 {[%emt 0:00:05]} 6. f3 {[%emt 0:01:15]} e5 {[%emt 0:00:32]} 7. Nb3 {[%emt 0:02:26]} Be6 {[%emt 0:00:29]} 8. Bg5 {[%emt 0:02:49]} Be7 {[%emt 0:00:19]} 9. Qd2 {[%emt 0:02:05]} Nbd7 {[%emt 0:01:07]} 10. Be2 {[%emt 0:09:00]} b5 {[%emt 0:03:10]} 11. Rd1 {[%emt 0:05:24]} O-O {[%emt 0:01:07]} 12. O-O {[%emt 0:07:18]} Nb6 {[%emt 0:05:10]} 13. Na5 {[%emt 0:09:47]} Rc8 {[%emt 0:02:47]} 14. Bxf6 {[%emt 0:04:51]} gxf6 {[%emt 0:00:09]} 15. Nd5 {[%emt 0:00:17]} Nxd5 {[%emt 0:00:19]} 16. exd5 {[%emt 0:00:12]} Bxd5 {[%emt 0:00:01]} 17. Qxd5 {[%emt 0:02:50]} Qxa5 {[%emt 0:00:01]} 18. Bd3 {[%emt 0:01:17]} Qb4 {[%emt 0:00:32]} 19. Kh1 {[%emt 0:01:50]} Qf4 {[%emt 0:10:14]} 20. Qb7 {[%emt 0:01:43]} Rfe8 {[%emt 0:01:31]} 21. Qxa6 {[%emt 0:01:25]} b4 {[%emt 0:00:57]} 22. Qb7 {[%emt 0:00:21]} Rb8 {[%emt 0:03:19]} 23. Qd7 {[%emt 0:00:08]} Bf8 {[%emt 0:00:46]} 24. Rfe1 {[%emt 0:02:57]} Red8 {[%emt 0:01:04]} 25. Qh3 {[%emt 0:01:50]} Qh6 {[%emt 0:00:07]} 26. Re4 {[%emt 0:11:27]} Qxh3 {[%emt 0:03:17]} 27. gxh3 {[%emt 0:00:05]} Bg7 {[%emt 0:08:08]} 28. Rg1 {[%emt 0:01:02]} Kf8 {[%emt 0:01:04]} 29. Reg4 {[%emt 0:06:02]} Bh6 {[%emt 0:00:40]} 30. Rg8+ {[%emt 0:01:51]} Ke7 {[%emt 0:00:06]} 31. Rxd8 {[%emt 0:00:06]} Rxd8 {[%emt 0:00:09]} 32. Bxh7 {[%emt 0:00:11]} Rh8 {[%emt 0:00:17]} 33. Bf5 {[%emt 0:00:06]} Be3 {[%emt 0:00:03]} 34. Rd1 {[%emt 0:01:40]} Ra8 {[%emt 0:00:35]} 35. Rd3 {[%emt 0:06:08]} Bc5 {[%emt 0:00:56]} 36. a3 {[%emt 0:02:03]} bxa3 {[%emt 0:01:06]} 37. bxa3 {[%emt 0:00:07]} Rg8 {[%emt 0:00:15]} 38. Rd1 {[%emt 0:00:41]} Bxa3 {[%emt 0:58:38]} 1/2-1/2